[Event "Titled Tuesday Blitz May 17 Early 2022"]
[White "Andreikin, Dmitry"]
[Black "Bryakin, Mikhail"]
[WhiteFideId "4158814"]
[BlackFideId "4165314"]
[WhiteElo "2736"]
[BlackElo "2417"]
[Result "1-0"]
[Round "04"]
[TimeControl "180+1"]
[Date "2022.05.17"]
[WhiteClock "0:02:08"]
[BlackClock "0:01:03"]

1. d4 {[%clk 0:03:00]}  d6 {[%clk 0:02:55]} 2. e4 {[%clk 0:03:00]}  Nf6 {[%clk 0:02:47]} 3. Nc3 {[%clk 0:02:59]}  g6 {[%clk 0:02:42]} 4. Be3 {[%clk 0:02:57]}  Bg7 {[%clk 0:02:40]} 5. f3 {[%clk 0:02:57]}  O-O {[%clk 0:02:38]} 6. Qd2 {[%clk 0:02:57]}  c6 {[%clk 0:02:29]} 7. Bh6 {[%clk 0:02:57]}  b5 {[%clk 0:02:27]} 8. h4 {[%clk 0:02:56]}  b4 {[%clk 0:02:26]} 9. Nce2 {[%clk 0:02:56]}  Re8 {[%clk 0:02:26]} 10. Bxg7 {[%clk 0:02:54]}  Kxg7 {[%clk 0:02:27]} 11. h5 {[%clk 0:02:54]}  e5 {[%clk 0:02:19]} 12. hxg6 {[%clk 0:02:52]}  fxg6 {[%clk 0:02:20]} 13. O-O-O {[%clk 0:02:42]}  Qa5 {[%clk 0:02:12]} 14. Kb1 {[%clk 0:02:41]}  Be6 {[%clk 0:02:11]} 15. Nc1 {[%clk 0:02:38]}  Nbd7 {[%clk 0:02:10]} 16. Nge2 {[%clk 0:02:30]}  Nb6 {[%clk 0:02:07]} 17. Nb3 {[%clk 0:02:30]}  Qa4 {[%clk 0:02:00]} 18. g4 {[%clk 0:02:29]}  Nc4 {[%clk 0:01:55]} 19. Qh6+ {[%clk 0:02:28]}  Kg8 {[%clk 0:01:56]} 20. g5 {[%clk 0:02:12]}  Nh5 {[%clk 0:01:55]} 21. Ng3 {[%clk 0:02:12]}  Bf7 {[%clk 0:01:02]} 22. Rxh5 {[%clk 0:02:10]}  gxh5 {[%clk 0:01:03]} 23. Nf5 {[%clk 0:02:08]} 1-0


[Site "https://www.chess.com"]

[Event "Titled Tuesday Blitz May 17 Early 2022"]
[White "Beerdsen, Thomas"]
[Black "Vokhidov, Shamsiddin"]
[WhiteFideId "1030108"]
[BlackFideId "14204223"]
[WhiteElo "2585"]
[BlackElo "2611"]
[Result "0-1"]
[Round "04"]
[TimeControl "180+1"]
[Date "2022.05.17"]
[WhiteClock "0:01:20"]
[BlackClock "0:01:50"]

1. e4 {[%clk 0:02:58]}  e5 {[%clk 0:03:00]} 2. Nf3 {[%clk 0:02:58]}  Nc6 {[%clk 0:03:00]} 3. d4 {[%clk 0:02:59]}  exd4 {[%clk 0:03:01]} 4. Bc4 {[%clk 0:02:59]}  Bc5 {[%clk 0:02:59]} 5. c3 {[%clk 0:02:58]}  Nf6 {[%clk 0:02:59]} 6. O-O {[%clk 0:02:56]}  Nxe4 {[%clk 0:02:56]} 7. Bd5 {[%clk 0:02:52]}  Nf6 {[%clk 0:02:48]} 8. Re1+ {[%clk 0:02:50]}  Be7 {[%clk 0:02:44]} 9. Bb3 {[%clk 0:02:42]}  O-O {[%clk 0:02:41]} 10. Bg5 {[%clk 0:02:34]}  h6 {[%clk 0:02:39]} 11. Bh4 {[%clk 0:02:33]}  d5 {[%clk 0:02:34]} 12. h3 {[%clk 0:02:30]}  dxc3 {[%clk 0:02:16]} 13. Nxc3 {[%clk 0:02:31]}  Be6 {[%clk 0:02:16]} 14. Ne2 {[%clk 0:02:19]}  Ne4 {[%clk 0:02:14]} 15. Bxe7 {[%clk 0:02:17]}  Nxe7 {[%clk 0:02:15]} 16. Nf4 {[%clk 0:02:13]}  Qd6 {[%clk 0:02:11]} 17. g3 {[%clk 0:02:05]}  Rad8 {[%clk 0:02:07]} 18. Nd4 {[%clk 0:02:01]}  Bd7 {[%clk 0:02:01]} 19. Qh5 {[%clk 0:01:53]}  c5 {[%clk 0:01:58]} 20. Nxd5 {[%clk 0:01:49]}  Nxd5 {[%clk 0:01:56]} 21. Qxd5 {[%clk 0:01:21]}  Qxd5 {[%clk 0:01:54]} 22. Bxd5 {[%clk 0:01:22]}  Nf6 {[%clk 0:01:55]} 23. Bxf7+ {[%clk 0:01:20]}  Rxf7 {[%clk 0:01:54]} 24. Nf3 {[%clk 0:01:21]}  Bxh3 {[%clk 0:01:52]} 25. Ne5 {[%clk 0:01:21]}  Re7 {[%clk 0:01:51]} 26. Ng6 {[%clk 0:01:22]}  Rxe1+ {[%clk 0:01:51]} 27. Rxe1 {[%clk 0:01:23]}  Bg4 {[%clk 0:01:51]} 28. Ne5 {[%clk 0:01:21]}  Rd1 {[%clk 0:01:50]} 29. Rxd1 {[%clk 0:01:19]}  Bxd1 {[%clk 0:01:51]} 30. Nd3 {[%clk 0:01:19]}  b6 {[%clk 0:01:50]} 31. Nxc5 {[%clk 0:01:20]}  bxc5 {[%clk 0:01:50]} 0-1


[Site "https://www.chess.com"]

[Event "Titled Tuesday Blitz May 17 Early 2022"]
[White "Ciorgovean, Iustin"]
[Black "Harsha Bharathakoti"]
[WhiteFideId "1242911"]
[BlackFideId "5078776"]
[WhiteElo "2075"]
[BlackElo "2575"]
[Result "1-0"]
[Round "04"]
[TimeControl "180+1"]
[Date "2022.05.17"]
[WhiteClock "0:00:07"]
[BlackClock "0:00:02"]

1. d4 {[%clk 0:03:00]}  Nf6 {[%clk 0:02:59]} 2. c4 {[%clk 0:03:01]}  g6 {[%clk 0:03:00]} 3. Nc3 {[%clk 0:03:01]}  Bg7 {[%clk 0:03:00]} 4. e4 {[%clk 0:03:02]}  d6 {[%clk 0:03:01]} 5. h3 {[%clk 0:03:02]}  O-O {[%clk 0:03:02]} 6. Be3 {[%clk 0:03:03]}  e5 {[%clk 0:02:57]} 7. d5 {[%clk 0:03:04]}  Na6 {[%clk 0:02:57]} 8. g4 {[%clk 0:03:04]}  Nc5 {[%clk 0:02:58]} 9. f3 {[%clk 0:03:04]}  a5 {[%clk 0:02:22]} 10. Nge2 {[%clk 0:03:00]}  c6 {[%clk 0:02:20]} 11. Ng3 {[%clk 0:02:57]}  h5 {[%clk 0:02:21]} 12. Rg1 {[%clk 0:02:53]}  h4 {[%clk 0:02:08]} 13. Nh1 {[%clk 0:02:52]}  Nh7 {[%clk 0:01:55]} 14. Qd2 {[%clk 0:02:45]}  cxd5 {[%clk 0:01:55]} 15. cxd5 {[%clk 0:02:45]}  Bd7 {[%clk 0:01:52]} 16. Nf2 {[%clk 0:02:28]}  a4 {[%clk 0:01:43]} 17. g5 {[%clk 0:02:16]}  Qa5 {[%clk 0:01:31]} 18. Ng4 {[%clk 0:01:54]}  b5 {[%clk 0:01:30]} 19. Rc1 {[%clk 0:01:52]}  Rfc8 {[%clk 0:01:19]} 20. Be2 {[%clk 0:01:48]}  a3 {[%clk 0:00:52]} 21. b3 {[%clk 0:00:38]}  b4 {[%clk 0:00:25]} 22. Nd1 {[%clk 0:00:32]}  Bb5 {[%clk 0:00:14]} 23. Bxc5 {[%clk 0:00:21]}  Bxe2 {[%clk 0:00:03]} 24. Kxe2 {[%clk 0:00:17]}  Rxc5 {[%clk 0:00:03]} 25. Rxc5 {[%clk 0:00:15]}  Qxc5 {[%clk 0:00:03]} 26. Ndf2 {[%clk 0:00:16]}  Rc8 {[%clk 0:00:02]} 27. Rd1 {[%clk 0:00:16]}  Bf8 {[%clk 0:00:02]} 28. Nd3 {[%clk 0:00:13]}  Qa7 {[%clk 0:00:02]} 29. Nxb4 {[%clk 0:00:12]}  Be7 {[%clk 0:00:01]} 30. Nc6 {[%clk 0:00:12]}  Qa6+ {[%clk 0:00:01]} 31. Qd3 {[%clk 0:00:11]}  Qb7 {[%clk 0:00:02]} 32. Rc1 {[%clk 0:00:10]}  Kg7 {[%clk 0:00:02]} 33. Qd2 {[%clk 0:00:09]}  Bxg5 {[%clk 0:00:02]} 34. Qc2 {[%clk 0:00:07]}  Bxc1 {[%clk 0:00:01]} 35. Qxc1 {[%clk 0:00:08]}  Nf6 {[%clk 0:00:02]} 36. Qh6+ {[%clk 0:00:07]}  Kg8 {[%clk 0:00:02]} 37. Nxf6# {[%clk 0:00:07]} 1-0


[Site "https://www.chess.com"]

[Event "Titled Tuesday Blitz May 17 Early 2022"]
[White "Donchenko, Alexander"]
[Black "Liyanage, Ranindu Dilshan"]
[WhiteFideId "24603295"]
[BlackFideId "9915834"]
[WhiteElo "2572"]
[BlackElo "1858"]
[Result "1-0"]
[Round "04"]
[TimeControl "180+1"]
[Date "2022.05.17"]
[WhiteClock "0:01:27"]
[BlackClock "0:00:08"]

1. d4 {[%clk 0:03:00]}  Nf6 {[%clk 0:03:00]} 2. c4 {[%clk 0:03:00]}  e6 {[%clk 0:03:01]} 3. g3 {[%clk 0:03:00]}  d5 {[%clk 0:03:00]} 4. Bg2 {[%clk 0:03:01]}  Be7 {[%clk 0:03:01]} 5. Nf3 {[%clk 0:03:01]}  O-O {[%clk 0:03:02]} 6. Nc3 {[%clk 0:03:01]}  dxc4 {[%clk 0:03:01]} 7. Ne5 {[%clk 0:03:02]}  Nc6 {[%clk 0:03:01]} 8. Bxc6 {[%clk 0:03:02]}  bxc6 {[%clk 0:03:02]} 9. Nxc6 {[%clk 0:03:03]}  Qe8 {[%clk 0:03:02]} 10. Nxe7+ {[%clk 0:03:04]}  Qxe7 {[%clk 0:03:02]} 11. Qa4 {[%clk 0:03:04]}  e5 {[%clk 0:03:02]} 12. dxe5 {[%clk 0:03:00]}  Qxe5 {[%clk 0:03:03]} 13. Qxc4 {[%clk 0:02:51]}  Be6 {[%clk 0:02:54]} 14. Bf4 {[%clk 0:02:41]}  Qf5 {[%clk 0:02:30]} 15. Qb5 {[%clk 0:02:33]}  Qh3 {[%clk 0:02:10]} 16. O-O-O {[%clk 0:02:27]}  Rab8 {[%clk 0:02:01]} 17. Qc5 {[%clk 0:02:21]}  Rb7 {[%clk 0:01:57]} 18. Bg5 {[%clk 0:02:06]}  Nd7 {[%clk 0:01:40]} 19. Qc6 {[%clk 0:02:03]}  Rfb8 {[%clk 0:01:38]} 20. Rd2 {[%clk 0:01:48]}  Rb6 {[%clk 0:00:59]} 21. Qxc7 {[%clk 0:01:45]}  Qg2 {[%clk 0:00:56]} 22. Rhd1 {[%clk 0:01:40]}  Qxf2 {[%clk 0:00:50]} 23. Rxd7 {[%clk 0:01:35]}  Bxd7 {[%clk 0:00:51]} 24. Rxd7 {[%clk 0:01:33]}  h6 {[%clk 0:00:45]} 25. Bf4 {[%clk 0:01:28]}  Rxb2 {[%clk 0:00:11]} 26. Rd8+ {[%clk 0:01:27]}  Kh7 {[%clk 0:00:08]} 27. Rxb8 {[%clk 0:01:27]} 1-0


[Site "https://www.chess.com"]

[Event "Titled Tuesday Blitz May 17 Early 2022"]
[White "Krishna, C R G"]
[Black "Deac, Bogdan-Daniel"]
[WhiteFideId "5018625"]
[BlackFideId "1226380"]
[WhiteElo "2332"]
[BlackElo "2648"]
[Result "1-0"]
[Round "04"]
[TimeControl "180+1"]
[Date "2022.05.17"]
[WhiteClock "0:00:12"]
[BlackClock "0:00:03"]

1. d4 {[%clk 0:03:00]}  Nf6 {[%clk 0:02:59]} 2. Nf3 {[%clk 0:03:01]}  d5 {[%clk 0:02:58]} 3. e3 {[%clk 0:03:00]}  g6 {[%clk 0:02:54]} 4. c4 {[%clk 0:02:58]}  Bg7 {[%clk 0:02:53]} 5. cxd5 {[%clk 0:02:58]}  O-O {[%clk 0:02:53]} 6. Be2 {[%clk 0:02:57]}  b6 {[%clk 0:02:51]} 7. O-O {[%clk 0:02:56]}  Bb7 {[%clk 0:02:51]} 8. Qc2 {[%clk 0:02:47]}  Nxd5 {[%clk 0:02:45]} 9. a3 {[%clk 0:02:47]}  Nf6 {[%clk 0:02:34]} 10. Nc3 {[%clk 0:02:46]}  c5 {[%clk 0:02:33]} 11. dxc5 {[%clk 0:02:46]}  bxc5 {[%clk 0:02:33]} 12. Rd1 {[%clk 0:02:36]}  Nbd7 {[%clk 0:02:30]} 13. e4 {[%clk 0:02:36]}  Qc7 {[%clk 0:02:07]} 14. Bg5 {[%clk 0:02:34]}  Ne5 {[%clk 0:01:52]} 15. Bh4 {[%clk 0:01:41]}  Rad8 {[%clk 0:01:33]} 16. Bg3 {[%clk 0:01:39]}  Nfg4 {[%clk 0:01:27]} 17. Nxe5 {[%clk 0:01:33]}  Nxe5 {[%clk 0:01:26]} 18. Nd5 {[%clk 0:01:28]}  Bxd5 {[%clk 0:01:20]} 19. exd5 {[%clk 0:01:29]}  Qb6 {[%clk 0:01:20]} 20. Rac1 {[%clk 0:01:27]}  Nd7 {[%clk 0:01:12]} 21. b4 {[%clk 0:01:22]}  Bd4 {[%clk 0:00:46]} 22. Bg4 {[%clk 0:01:01]}  f5 {[%clk 0:00:40]} 23. Bf3 {[%clk 0:00:56]}  Qf6 {[%clk 0:00:35]} 24. Bf4 {[%clk 0:00:25]}  g5 {[%clk 0:00:34]} 25. Be3 {[%clk 0:00:24]}  Bxe3 {[%clk 0:00:29]} 26. fxe3 {[%clk 0:00:25]}  cxb4 {[%clk 0:00:28]} 27. axb4 {[%clk 0:00:24]}  Ne5 {[%clk 0:00:25]} 28. Be2 {[%clk 0:00:24]}  Rd6 {[%clk 0:00:22]} 29. Qc5 {[%clk 0:00:23]}  a6 {[%clk 0:00:21]} 30. Qd4 {[%clk 0:00:22]}  Rfd8 {[%clk 0:00:18]} 31. Rc7 {[%clk 0:00:22]}  Rxd5 {[%clk 0:00:08]} 32. Qxd5+ {[%clk 0:00:22]}  Rxd5 {[%clk 0:00:08]} 33. Rxd5 {[%clk 0:00:23]}  Qb6 {[%clk 0:00:04]} 34. Rc8+ {[%clk 0:00:22]}  Kg7 {[%clk 0:00:03]} 35. Rxe5 {[%clk 0:00:22]}  Qxb4 {[%clk 0:00:04]} 36. Re8 {[%clk 0:00:20]}  Qe1+ {[%clk 0:00:03]} 37. Bf1 {[%clk 0:00:20]}  f4 {[%clk 0:00:03]} 38. exf4 {[%clk 0:00:19]}  Qb4 {[%clk 0:00:03]} 39. R8xe7+ {[%clk 0:00:19]}  Kf8 {[%clk 0:00:03]} 40. fxg5 {[%clk 0:00:14]}  Qd4+ {[%clk 0:00:03]} 41. Kh1 {[%clk 0:00:14]}  a5 {[%clk 0:00:03]} 42. Re8+ {[%clk 0:00:13]}  Kf7 {[%clk 0:00:04]} 43. R8e6 {[%clk 0:00:13]}  a4 {[%clk 0:00:03]} 44. Rf6+ {[%clk 0:00:13]}  Kg7 {[%clk 0:00:03]} 45. Re7+ {[%clk 0:00:13]}  Kg8 {[%clk 0:00:04]} 46. Rc7 {[%clk 0:00:12]}  a3 {[%clk 0:00:03]} 47. Bc4+ {[%clk 0:00:12]} 1-0


[Site "https://www.chess.com"]

[Event "Titled Tuesday Blitz May 17 Early 2022"]
[White "Lopez, Henry"]
[Black "Ohanyan, Emin"]
[WhiteFideId "5203830"]
[BlackFideId "13312022"]
[WhiteElo "2177"]
[BlackElo "1927"]
[Result "0-1"]
[Round "04"]
[TimeControl "180+1"]
[Date "2022.05.17"]
[WhiteClock "0:00:01"]
[BlackClock "0:00:09"]

1. d4 {[%clk 0:03:00]}  Nf6 {[%clk 0:02:59]} 2. Nf3 {[%clk 0:03:00]}  d5 {[%clk 0:02:59]} 3. c4 {[%clk 0:03:00]}  c6 {[%clk 0:02:58]} 4. Nc3 {[%clk 0:02:59]}  e6 {[%clk 0:02:58]} 5. Bg5 {[%clk 0:02:58]}  h6 {[%clk 0:02:57]} 6. Bh4 {[%clk 0:02:57]}  dxc4 {[%clk 0:02:56]} 7. e4 {[%clk 0:02:57]}  g5 {[%clk 0:02:54]} 8. Bg3 {[%clk 0:02:56]}  b5 {[%clk 0:02:55]} 9. Be2 {[%clk 0:02:55]}  Bg7 {[%clk 0:02:48]} 10. e5 {[%clk 0:02:31]}  Nd5 {[%clk 0:02:24]} 11. Ne4 {[%clk 0:02:23]}  O-O {[%clk 0:02:01]} 12. h4 {[%clk 0:02:14]}  g4 {[%clk 0:01:57]} 13. Nfg5 {[%clk 0:02:05]}  f5 {[%clk 0:00:49]} 14. exf6 {[%clk 0:01:15]}  Nxf6 {[%clk 0:00:48]} 15. Nxf6+ {[%clk 0:00:50]}  Qxf6 {[%clk 0:00:45]} 16. Qc2 {[%clk 0:00:28]}  hxg5 {[%clk 0:00:38]} 17. Bxg4 {[%clk 0:00:24]}  Qxd4 {[%clk 0:00:36]} 18. hxg5 {[%clk 0:00:17]}  Qxg4 {[%clk 0:00:26]} 19. Qg6 {[%clk 0:00:14]}  Qf5 {[%clk 0:00:17]} 20. Qh5 {[%clk 0:00:15]}  e5 {[%clk 0:00:16]} 21. Rd1 {[%clk 0:00:12]}  Be6 {[%clk 0:00:14]} 22. Rh4 {[%clk 0:00:10]}  Bf7 {[%clk 0:00:13]} 23. Qe2 {[%clk 0:00:09]}  Nd7 {[%clk 0:00:12]} 24. Rd6 {[%clk 0:00:04]}  Nc5 {[%clk 0:00:11]} 25. Kf1 {[%clk 0:00:03]}  Qb1+ {[%clk 0:00:10]} 26. Rd1 {[%clk 0:00:01]}  Bg6 {[%clk 0:00:09]} 0-1


[Site "https://www.chess.com"]

[Event "Titled Tuesday Blitz May 17 Early 2022"]
[White "Martic, Ivan"]
[Black "Sanal, Vahap"]
[WhiteFideId "929301"]
[BlackFideId "6300545"]
[WhiteElo "2317"]
[BlackElo "2574"]
[Result "1/2-1/2"]
[Round "04"]
[TimeControl "180+1"]
[Date "2022.05.17"]
[WhiteClock "0:00:13"]
[BlackClock "0:00:03"]

1. d4 {[%clk 0:03:00]}  Nf6 {[%clk 0:02:57]} 2. Bg5 {[%clk 0:03:00]}  d6 {[%clk 0:02:52]} 3. Bxf6 {[%clk 0:02:58]}  exf6 {[%clk 0:02:51]} 4. e3 {[%clk 0:02:57]}  g6 {[%clk 0:02:51]} 5. g3 {[%clk 0:02:56]}  Bg7 {[%clk 0:02:52]} 6. Bg2 {[%clk 0:02:56]}  O-O {[%clk 0:02:52]} 7. Ne2 {[%clk 0:02:56]}  c6 {[%clk 0:02:52]} 8. c4 {[%clk 0:02:56]}  f5 {[%clk 0:02:53]} 9. Nbc3 {[%clk 0:02:56]}  Nd7 {[%clk 0:02:53]} 10. O-O {[%clk 0:02:55]}  Nf6 {[%clk 0:02:54]} 11. Qd3 {[%clk 0:02:55]}  Re8 {[%clk 0:02:54]} 12. b4 {[%clk 0:02:54]}  h5 {[%clk 0:02:52]} 13. h4 {[%clk 0:02:52]}  Bd7 {[%clk 0:02:44]} 14. Rab1 {[%clk 0:02:50]}  a6 {[%clk 0:02:43]} 15. a4 {[%clk 0:02:49]}  Qe7 {[%clk 0:02:43]} 16. b5 {[%clk 0:02:44]}  axb5 {[%clk 0:02:43]} 17. axb5 {[%clk 0:02:45]}  Ne4 {[%clk 0:02:42]} 18. bxc6 {[%clk 0:02:40]}  bxc6 {[%clk 0:02:41]} 19. Rb7 {[%clk 0:02:27]}  Rab8 {[%clk 0:02:07]} 20. Rxb8 {[%clk 0:02:22]}  Rxb8 {[%clk 0:02:05]} 21. Nxe4 {[%clk 0:02:22]}  fxe4 {[%clk 0:02:06]} 22. Bxe4 {[%clk 0:02:19]}  g5 {[%clk 0:01:57]} 23. Bh7+ {[%clk 0:02:10]}  Kf8 {[%clk 0:01:56]} 24. Bf5 {[%clk 0:02:02]}  gxh4 {[%clk 0:01:56]} 25. gxh4 {[%clk 0:01:49]}  Bxf5 {[%clk 0:01:29]} 26. Qxf5 {[%clk 0:01:50]}  Qxh4 {[%clk 0:01:29]} 27. Ra1 {[%clk 0:01:34]}  Qg4+ {[%clk 0:01:26]} 28. Qxg4 {[%clk 0:01:33]}  hxg4 {[%clk 0:01:27]} 29. Ra6 {[%clk 0:01:28]}  c5 {[%clk 0:01:27]} 30. Rxd6 {[%clk 0:01:28]}  Rb4 {[%clk 0:01:09]} 31. dxc5 {[%clk 0:01:21]}  Rxc4 {[%clk 0:01:09]} 32. c6 {[%clk 0:01:22]}  Ke7 {[%clk 0:01:09]} 33. Rd7+ {[%clk 0:01:19]}  Ke8 {[%clk 0:01:07]} 34. Nd4 {[%clk 0:01:18]}  Rxc6 {[%clk 0:01:05]} 35. Nxc6 {[%clk 0:01:10]}  Kxd7 {[%clk 0:01:05]} 36. Na5 {[%clk 0:01:06]}  Kd6 {[%clk 0:01:04]} 37. Nc4+ {[%clk 0:01:04]}  Kd5 {[%clk 0:01:03]} 38. Nd2 {[%clk 0:01:04]}  Bc3 {[%clk 0:01:04]} 39. Nf1 {[%clk 0:01:04]}  Ke4 {[%clk 0:01:03]} 40. Kg2 {[%clk 0:01:02]}  f5 {[%clk 0:01:02]} 41. Ng3+ {[%clk 0:01:02]}  Ke5 {[%clk 0:01:02]} 42. Nh5 {[%clk 0:01:01]}  Ke4 {[%clk 0:00:58]} 43. Ng3+ {[%clk 0:00:59]}  Ke5 {[%clk 0:00:59]} 44. Kf1 {[%clk 0:00:59]}  Ba5 {[%clk 0:00:57]} 45. Ke2 {[%clk 0:00:59]}  Bd8 {[%clk 0:00:58]} 46. Kd3 {[%clk 0:00:57]}  Bh4 {[%clk 0:00:58]} 47. Kd2 {[%clk 0:00:47]}  Ke6 {[%clk 0:00:39]} 48. Ke1 {[%clk 0:00:35]}  Ke5 {[%clk 0:00:32]} 49. Nh5 {[%clk 0:00:29]}  Ke4 {[%clk 0:00:30]} 50. Ke2 {[%clk 0:00:26]}  Kd5 {[%clk 0:00:30]} 51. Nf4+ {[%clk 0:00:26]}  Kd6 {[%clk 0:00:30]} 52. Nd3 {[%clk 0:00:25]}  Bg5 {[%clk 0:00:29]} 53. Nb2 {[%clk 0:00:23]}  Kd5 {[%clk 0:00:29]} 54. Nd1 {[%clk 0:00:24]}  Bf6 {[%clk 0:00:29]} 55. f3 {[%clk 0:00:20]}  g3 {[%clk 0:00:27]} 56. e4+ {[%clk 0:00:18]}  fxe4 {[%clk 0:00:11]} 57. fxe4+ {[%clk 0:00:19]}  Kxe4 {[%clk 0:00:12]} 58. Ne3 {[%clk 0:00:19]}  Bg5 {[%clk 0:00:09]} 59. Ng2 {[%clk 0:00:19]}  Bc1 {[%clk 0:00:06]} 60. Ne1 {[%clk 0:00:18]}  Bg5 {[%clk 0:00:02]} 61. Ng2 {[%clk 0:00:18]}  Bh6 {[%clk 0:00:02]} 62. Nh4 {[%clk 0:00:18]}  Kf4 {[%clk 0:00:02]} 63. Ng2+ {[%clk 0:00:17]}  Kg4 {[%clk 0:00:02]} 64. Kf1 {[%clk 0:00:16]}  Kh3 {[%clk 0:00:02]} 65. Kg1 {[%clk 0:00:16]}  Bg5 {[%clk 0:00:02]} 66. Kh1 {[%clk 0:00:16]}  Bd2 {[%clk 0:00:02]} 67. Kg1 {[%clk 0:00:16]}  Bb4 {[%clk 0:00:02]} 68. Kh1 {[%clk 0:00:16]}  Bc5 {[%clk 0:00:02]} 69. Nf4+ {[%clk 0:00:16]}  Kg4 {[%clk 0:00:02]} 70. Ng2 {[%clk 0:00:17]}  Kf3 {[%clk 0:00:02]} 71. Nh4+ {[%clk 0:00:17]}  Kf2 {[%clk 0:00:03]} 72. Ng2 {[%clk 0:00:15]}  Be7 {[%clk 0:00:03]} 73. Nh4 {[%clk 0:00:15]}  Bg5 {[%clk 0:00:03]} 74. Ng2 {[%clk 0:00:14]}  Kf3 {[%clk 0:00:02]} 75. Kg1 {[%clk 0:00:13]}  Bf6 {[%clk 0:00:02]} 76. Kf1 {[%clk 0:00:13]}  Bd4 {[%clk 0:00:02]} 77. Ne1+ {[%clk 0:00:12]}  Kg4 {[%clk 0:00:02]} 78. Kg2 {[%clk 0:00:12]}  Bf2 {[%clk 0:00:01]} 79. Nd3 {[%clk 0:00:12]}  Be3 {[%clk 0:00:02]} 80. Nb4 {[%clk 0:00:11]}  Bd2 {[%clk 0:00:02]} 81. Nc6 {[%clk 0:00:11]}  Be1 {[%clk 0:00:02]} 82. Ne5+ {[%clk 0:00:11]}  Kf5 {[%clk 0:00:02]} 83. Nf3 {[%clk 0:00:12]}  Bf2 {[%clk 0:00:02]} 84. Nd2 {[%clk 0:00:12]}  Kf4 {[%clk 0:00:03]} 85. Nf1 {[%clk 0:00:12]}  Be1 {[%clk 0:00:03]} 86. Nxg3 {[%clk 0:00:13]} 1/2-1/2


[Site "https://www.chess.com"]

[Event "Titled Tuesday Blitz May 17 Early 2022"]
[White "Martinez Alcantara, Jose Eduardo"]
[Black "Rohith Krishna S"]
[WhiteFideId "3805662"]
[BlackFideId "46617051"]
[WhiteElo "2690"]
[BlackElo "2117"]
[Result "1-0"]
[Round "04"]
[TimeControl "180+1"]
[Date "2022.05.17"]
[WhiteClock "0:00:50"]
[BlackClock "0:00:46"]

1. e4 {[%clk 0:03:00]}  e5 {[%clk 0:02:59]} 2. Nf3 {[%clk 0:03:01]}  Nc6 {[%clk 0:03:00]} 3. Bb5 {[%clk 0:03:02]}  a6 {[%clk 0:02:59]} 4. Ba4 {[%clk 0:03:02]}  Nf6 {[%clk 0:03:00]} 5. d3 {[%clk 0:03:03]}  b5 {[%clk 0:02:58]} 6. Bb3 {[%clk 0:03:03]}  Bc5 {[%clk 0:02:59]} 7. c3 {[%clk 0:03:02]}  d6 {[%clk 0:02:56]} 8. Bg5 {[%clk 0:03:02]}  h6 {[%clk 0:02:56]} 9. Bh4 {[%clk 0:03:02]}  Qe7 {[%clk 0:02:50]} 10. Nbd2 {[%clk 0:03:01]}  Bb6 {[%clk 0:02:41]} 11. Qe2 {[%clk 0:02:57]}  Be6 {[%clk 0:02:40]} 12. Nf1 {[%clk 0:02:54]}  a5 {[%clk 0:02:36]} 13. Ne3 {[%clk 0:02:53]}  a4 {[%clk 0:02:36]} 14. Nd5 {[%clk 0:02:40]}  Nxd5 {[%clk 0:02:20]} 15. Bxd5 {[%clk 0:02:28]}  Qd7 {[%clk 0:02:17]} 16. Bxe6 {[%clk 0:02:28]}  Qxe6 {[%clk 0:02:16]} 17. O-O {[%clk 0:02:28]}  O-O {[%clk 0:02:15]} 18. Bg3 {[%clk 0:02:28]}  b4 {[%clk 0:02:12]} 19. a3 {[%clk 0:02:21]}  bxc3 {[%clk 0:02:10]} 20. bxc3 {[%clk 0:02:22]}  Bc5 {[%clk 0:02:09]} 21. Rfd1 {[%clk 0:02:21]}  Bb6 {[%clk 0:02:05]} 22. d4 {[%clk 0:02:19]}  exd4 {[%clk 0:02:06]} 23. cxd4 {[%clk 0:02:20]}  Na5 {[%clk 0:02:06]} 24. e5 {[%clk 0:02:19]}  Nb3 {[%clk 0:01:56]} 25. Rab1 {[%clk 0:02:09]}  Rfe8 {[%clk 0:01:52]} 26. Qb5 {[%clk 0:01:55]}  Ra5 {[%clk 0:01:51]} 27. Qb4 {[%clk 0:01:55]}  c5 {[%clk 0:01:49]} 28. dxc5 {[%clk 0:01:54]}  Bxc5 {[%clk 0:01:48]} 29. Qc3 {[%clk 0:01:54]}  Ra6 {[%clk 0:01:43]} 30. Re1 {[%clk 0:01:44]}  Qc8 {[%clk 0:01:38]} 31. exd6 {[%clk 0:01:31]}  Rxe1+ {[%clk 0:01:35]} 32. Qxe1 {[%clk 0:01:25]}  Bxd6 {[%clk 0:01:35]} 33. Bxd6 {[%clk 0:01:20]}  Rxd6 {[%clk 0:01:36]} 34. Qb4 {[%clk 0:01:20]}  Qc2 {[%clk 0:01:23]} 35. Re1 {[%clk 0:01:20]}  Ra6 {[%clk 0:01:12]} 36. h3 {[%clk 0:01:20]}  Qd3 {[%clk 0:01:09]} 37. Re8+ {[%clk 0:00:57]}  Kh7 {[%clk 0:01:09]} 38. Ne5 {[%clk 0:00:56]}  Qd5 {[%clk 0:01:04]} 39. Qf8 {[%clk 0:00:50]}  Qd1+ {[%clk 0:00:46]} 40. Kh2 {[%clk 0:00:50]} 1-0


[Site "https://www.chess.com"]

[Event "Titled Tuesday Blitz May 17 Early 2022"]
[White "Paravyan, David"]
[Black "Oganian, Miran"]
[WhiteFideId "4194985"]
[BlackFideId "4122488"]
[WhiteElo "2569"]
[BlackElo "2357"]
[Result "0-1"]
[Round "04"]
[TimeControl "180+1"]
[Date "2022.05.17"]
[WhiteClock "0:00:27"]
[BlackClock "0:01:24"]

1. e4 {[%clk 0:02:32]}  e6 {[%clk 0:02:59]} 2. d4 {[%clk 0:02:32]}  d5 {[%clk 0:03:00]} 3. Nc3 {[%clk 0:02:32]}  Bb4 {[%clk 0:03:00]} 4. e5 {[%clk 0:02:31]}  c5 {[%clk 0:03:00]} 5. a3 {[%clk 0:02:31]}  Bxc3+ {[%clk 0:03:01]} 6. bxc3 {[%clk 0:02:32]}  Ne7 {[%clk 0:03:01]} 7. Qg4 {[%clk 0:02:31]}  Qc7 {[%clk 0:03:02]} 8. Qxg7 {[%clk 0:02:29]}  Rg8 {[%clk 0:03:02]} 9. Qxh7 {[%clk 0:02:29]}  cxd4 {[%clk 0:03:02]} 10. Rb1 {[%clk 0:02:27]}  Nbc6 {[%clk 0:03:02]} 11. Nf3 {[%clk 0:02:25]}  dxc3 {[%clk 0:03:02]} 12. Bf4 {[%clk 0:02:18]}  Bd7 {[%clk 0:02:59]} 13. h4 {[%clk 0:01:32]}  d4 {[%clk 0:02:55]} 14. Ng5 {[%clk 0:01:28]}  Rf8 {[%clk 0:02:51]} 15. Ne4 {[%clk 0:01:27]}  b6 {[%clk 0:02:29]} 16. Nd6+ {[%clk 0:01:23]}  Kd8 {[%clk 0:02:30]} 17. Ba6 {[%clk 0:01:13]}  Be8 {[%clk 0:02:27]} 18. Qe4 {[%clk 0:00:56]}  Nd5 {[%clk 0:01:56]} 19. Bg5+ {[%clk 0:00:47]}  f6 {[%clk 0:01:53]} 20. Nxe8 {[%clk 0:00:39]}  Kxe8 {[%clk 0:01:43]} 21. exf6 {[%clk 0:00:38]}  Qe5 {[%clk 0:01:39]} 22. Qxe5 {[%clk 0:00:32]}  Nxe5 {[%clk 0:01:40]} 23. O-O {[%clk 0:00:29]}  Kf7 {[%clk 0:01:34]} 24. Rfe1 {[%clk 0:00:27]}  Ng4 {[%clk 0:01:24]} 0-1


[Site "https://www.chess.com"]